Cogmind - Beta 16 @@@ ROGUE MODE // 2026.01.26 @ 22:24:17 Player: TH-3000 Result: Self-destructed Performance ------------- Evolutions (3) 1500 Regions Visited (4) 800 Robots Destroyed (94) 470 Value Destroyed (2412) 2412 Prototype IDs (10) 200 Alien Tech Used (0) 0 Bonus (98) 98 TOTAL SCORE: 5480 Bonus ------- High Alert Combat Kills 98 Cogmind --------- Core Integrity 104/700 Matter 159/300 Energy 100/100 System Corruption 0% Temperature Cool (0) Movement Core (700) Ox13 Location -7/Factory Parts ------- > --- POWER (1) -------- (None) > --- PROPULSION (5) --- (None) > --- UTILITY (4) ------ High-capacity Storage Unit Signal Interpreter Advanced Terrain Scan Processor > --- WEAPON (3) ------- (None) > --- INVENTORY (20) --- Ion Engine Improved Treads Heat Sink Light Armor Plating Shock Rifle Shock Rifle Heavy Particle Gun Light EM Pulse Cannon Heavy Assault Rifle Heavy Assault Rifle Heavy Assault Rifle Grenade Launcher Mini Grenade Launcher Scythe Peak State ------------ > --- POWER ------------ Heavy Ion Engine > --- PROPULSION ------- Light Treads Armored Treads Armored Treads Armored Treads > --- UTILITY ---------- High-capacity Storage Unit Signal Interpreter Reactive Plating > --- WEAPON ----------- Mini Grenade Launcher Mini Grenade Launcher Scythe > --- INVENTORY -------- Ion Engine Ion Engine Light Treads Improved Treads Heat Sink Light Armor Plating Shock Rifle Shock Rifle Heavy Particle Gun Heavy Particle Gun Heavy Particle Gun Heavy Particle Gun Light EM Pulse Cannon Particle Cannon Heavy Assault Rifle Heavy Assault Rifle Heavy Assault Rifle Grenade Launcher Mini Grenade Launcher Datajack [Rating: 29] Favorites ----------- Power Heavy Ion Engine Engine Heavy Ion Engine Propulsion Armored Treads Treads Armored Treads Leg Aluminum Leg Wheel Wheel Utility Signal Interpreter Device Sensor Array Storage High-capacity Storage Unit Processor Signal Interpreter Protection Reactive Plating Weapon Mini Grenade Launcher Energy Gun Heavy Particle Gun Energy Cannon Particle Cannon Ballistic Gun Light Assault Rifle Launcher Mini Grenade Launcher Special Weapon Mining Laser Slashing Weapon Scythe Special Melee Weapon Datajack Build | -11 -10 -9 -8 -7 ------- Run | Yrd Mat Mat Mat Fac Slots Evolved 6 | . . 2 2 2 Power . | . . . . . Propulsion 3 | . . 1 1 1 Utility 2 | . . 1 . 1 Weapon 1 | . . . 1 . Parts Attached 60 | 10 18 22 7 3 Power 8 | 1 4 2 1 . Engine 8 | 1 4 2 1 . Core . | . . . . . Reactor . | . . . . . Propulsion 15 | 4 4 4 2 1 Treads 7 | . . 4 2 1 Leg 4 | 2 2 . . . Wheel 4 | 2 2 . . . Hover . | . . . . . Flight . | . . . . . Utility 11 | 3 6 . 1 1 Device 3 | 1 2 . . . Storage 5 | 2 3 . . . Processor 2 | . 1 . . 1 Hackware . | . . . . . Protection 1 | . . . 1 . Artifact . | . . . . . Weapon 26 | 2 4 16 3 1 Energy Gun 11 | 1 . 10 . . Energy Cannon 5 | . 4 1 . . Ballistic Gun 1 | 1 . . . . Ballistic Cannon . | . . . . . Launcher 5 | . . 5 . . Special Weapon 1 | . . . 1 . Impact Weapon . | . . . . . Slashing Weapon 2 | . . . 2 . Piercing Weapon . | . . . . . Special Melee Weapon 1 | . . . . 1 Unidentified Prototypes 4 | . . 4 . . Parts Lost 17 | . 1 . 6 10 Power 3 | . 1 . 1 1 Propulsion 5 | . . . 3 2 Utility 2 | . . . 2 . Weapon 7 | . . . . 7 Highest Loss Streak 5 | . 1 . 3 5 To Critical Strikes . | . . . . . Average Backups 15 | 5 8 18 19 15 Power 1 | 1 2 1 1 1 Propulsion 1 | 3 2 2 1 1 Utility 1 | . . 1 2 2 Weapon 9 | . 3 12 12 10 Tool/Special . | . . . . . Unused Backups 17 | 2 8 1 . 6 Power 2 | . 1 . . 1 Propulsion 4 | 2 2 . . . Utility 4 | . 1 1 . 2 Weapon 7 | . 4 . . 3 Tool/Special . | . . . . . Average Slot Usage (%) 88 | . 100 98 88 39 Engine 9 | . 14 11 7 1 Treads 19 | . . 31 29 4 Leg 2 | . 10 . . . Wheel 4 | . 17 . . . Device 8 | . 14 11 1 . Storage 9 | . 7 10 9 7 Processor 10 | . 6 11 9 14 Protection 1 | . . . 5 . Energy Gun 6 | . 2 8 5 5 Energy Cannon 6 | . 23 2 . . Launcher 7 | . . 10 15 . Slashing Weapon 1 | . . . 4 1 Peak Build Rating 29 | 9 12 27 29 25 Average Rating 18 | 6 9 23 25 14 On Entrance 12 | . 9 9 24 21 Avg Prop Armor Cover (%) 10 | . 4 14 . . Naked Turns . | . . . . . Heaviest Build 62 | 15 54 56 62 53 Greatest Support 80 | 32 32 60 80 40 Greatest Overweight (x) 18 | . 3 18 1 16 Average Overweight (x) . | . . . . 5 Largest Inventory Capacity 20 | 8 20 20 20 20 Average Capacity 17 | 7 10 19 20 20 Most Carried 20 | 8 15 20 20 18 Average Carried 15 | 5 8 18 19 15 Final Capacity 20 | 8 5 20 20 20 Final Carried 20 | 6 5 20 18 14 Class Distribution -------------------- 82% | Mutant 9% | Bomber 5% | Scavenger-Mutant Dominant Class ---------------- Mutant | -10/Materials Mutant | -9/Materials Mutant | -8/Materials Mutant | -7/Factory Resources | -11 -10 -9 -8 -7 ----------- Run | Yrd Mat Mat Mat Fac Matter Collected 1790 | 330 242 726 477 15 Remotely . | . . . . . Salvage Created 2564 | 207 535 1172 523 127 Parts 154 | 10 40 79 18 7 Haulers Intercepted 1 | . . 1 . . Recyclers Shooed . | . . . . . Parts Field Recycled . | . . . . . Retrieved Matter . | . . . . . Parts Self-Destructed . | . . . . . Prevented . | . . . . . Parts Restored . | . . . . . Kills | -11 -10 -9 -8 -7 ------- Run | Yrd Mat Mat Mat Fac Combat Hostiles Destroyed 62 | . 16 28 15 3 Melee 6 | . . . 6 . Guns 15 | . 2 11 1 1 Cannons 19 | . 14 3 2 . AOE 22 | . . 14 6 2 Classes Destroyed 13 | 3 3 6 . 1 Worker 4 | 2 1 . 1 . Builder 11 | . . 9 1 1 Tunneler 4 | 3 . 1 . . Hauler 1 | . . 1 . . Recycler 3 | 1 . 2 . . Mechanic 1 | . . 1 . . Operator 2 | . . 1 1 . Watcher 6 | . 1 4 1 . Swarmer 16 | . 6 10 . . Grunt 36 | . 10 14 10 2 Duelist 1 | . . 1 . . Sentry 8 | . . 3 5 . Hunter 1 | . . . . 1 Best Kill Streak 5 | 3 3 5 5 3 Combat Bots Only 4 | . 3 4 3 2 Max Kills in Single Turn 3 | 1 1 3 3 2 Gunslinging . | . . . . . Exploded 3 | . . 3 2 1 Melee 1 | . . . 1 . Uniques/NPCs Destroyed . | . . . . . Combat | -11 -10 -9 -8 -7 -------- Run | Yrd Mat Mat Mat Fac Hostile Shots Fired 409 | . 78 115 103 113 Missed 104 | . 21 35 21 27 Hits 305 | . 57 80 82 86 Projectile 305 | . 57 80 82 86 Critical Strikes 8 | . . 1 5 2 Damage Taken 4462 | . 735 1041 1431 1255 Core 1042 | . 183 128 135 596 Absorbed by Shields . | . . . . . Ignored by Resistances 12 | . . . 12 . Regen/Repaired (Parts) 390 | . . 390 . . Core Remaining (%) 67 | 100 26 68 75 . Volleys Fired 170 | 20 47 77 21 5 Largest 3 | 2 2 2 3 3 Hottest 178 | 60 136 136 178 165 Shots Fired 336 | 40 86 147 50 13 Gun 164 | 40 23 79 13 9 Cannon 99 | . 63 32 4 . Launcher 68 | . . 36 28 4 Special 5 | . . . 5 . Kinetic 28 | 20 8 . . . Thermal 209 | 20 78 80 22 9 Explosive 68 | . . 36 28 4 Electromagnetic 31 | . . 31 . . Robot Hit Streak 14 | 6 9 14 9 8 Robot Miss Streak 6 | 3 4 6 3 1 Penetration Max . | . . . . . Secondary Targets 2 | . . 2 . . Max Gunslinging Chain 1 | . . 1 . . Shots Hit Robots 213 | 23 49 79 49 13 Core Hits 132 | 9 24 61 29 9 Critical Kills . | . . . . . Critical Parts Destroyed . | . . . . . Critical Strikes 4 | . . 1 2 1 Burn 2 | . . 1 . 1 Sever 2 | . . . 2 . Melee Attacks 34 | . . . 29 5 Impact . | . . . . . Slashing 29 | . . . 29 . Piercing . | . . . . . Sneak Attacks 7 | . . . 2 5 Combat Hostiles . | . . . . . Follow-up Attacks . | . . . . . Damage Inflicted 6760 | 223 932 2886 2321 398 Guns 1462 | 223 132 818 144 145 Cannons 1306 | . 776 468 62 . Explosions 3175 | . . 1600 1329 246 Melee 738 | . . . 738 . Ramming 31 | . 24 . . 7 Kinetic 151 | 111 40 . . . Thermal 2362 | 112 868 911 326 145 Explosive 3031 | . . 1528 1257 246 Electromagnetic 447 | . . 447 . . Impact . | . . . . . Slashing 738 | . . . 738 . Piercing . | . . . . . Highest Corruption 3 | . . 3 . . Average Corruption 3 | . . 3 . . Corruption Purged . | . . . . . Corruption Blocked . | . . . . . Effects 33 | . . 33 . . Message Errors 10 | . . 10 . . Matter Fused 8 | . . 8 . . Heat Flow Errors 4 | . . 4 . . Energy Discharges 3 | . . 3 . . Parts Fused 2 | . . 2 . . Data Loss (minor) 2 | . . 2 . . Data Loss (major) 1 | . . 1 . . Misfires 1 | . . 1 . . Alerts 1 | . . 1 . . Weapon Failures 1 | . . 1 . . Overload Shots . | . . . . . Overflow Damage 238 | . 13 122 103 . Projectiles 46 | . 13 33 . . Explosions 132 | . . 89 43 . Melee 60 | . . . 60 . Knockbacks . | . . . . . Impact . | . . . . . Kinetic . | . . . . . Secondary . | . . . . . Self-Inflicted Damage 424 | . 24 209 189 2 Shots 13 | . . 8 5 . Rammed 3 | . . . . 3 Targets Rammed 3 | . . . . 3 Kicked . | . . . . . Crushed . | . . . . . Highest Temperature 735 | 40 735 634 401 155 Average Temperature 144 | 17 202 138 82 81 Received Heat Transfer 1413 | . 288 225 684 216 Effects 40 | . 26 13 1 . Shutdowns 6 | . 5 1 . . Energy Bleed 4 | . 3 1 . . Interference 10 | . 4 6 . . Matter Decay 2 | . 1 . 1 . Short Circuit 4 | . . 4 . . Damage (minor) 3 | . 2 1 . . Damage (major) 9 | . 9 . . . Damage (core) 2 | . 2 . . . Siege Activations . | . . . . . Martial Activations . | . . . . . Shielding Activations . | . . . . . Robots Disrupted . | . . . . . Combat Hostiles . | . . . . . Robots Corrupted . | . . . . . Combat Hostiles . | . . . . . Parts Fried 4 | . . 4 . . Impact Corruptions . | . . . . . Robots Melted . | . . . . . Combat Hostiles . | . . . . . Parts Melted 5 | . 3 2 . . Heat Transferred 4609 | 250 1606 1826 557 370 Parts Sabotaged . | . . . . . Parts Stolen . | . . . . . Parts Stripped . | . . . . . Power Chain Reactions 1 | . . 1 . . Alert | -11 -10 -9 -8 -7 ------- Run | Yrd Mat Mat Mat Fac Maximum Alert Level 2 | . . 2 2 . Low Security (%) 54 | 100 100 34 1 100 Level 1 34 | . . 53 64 . Level 2 11 | . . 12 34 . Level 3 . | . . . . . Level 4 . | . . . . . Level 5 . | . . . . . High Security . | . . . . . Max Security . | . . . . . Peak Influence 557 | 10 131 557 463 199 Initial 234 | . . 28 234 199 Average 192 | 1 57 242 372 68 Influence Increases 2297 | 30 457 1087 639 84 Destroy 0b10 Robot/C 1240 | . 320 560 300 60 Destroy 0b10 Robot/NC 160 | 30 10 95 20 5 Destroy Leader 284 | . 72 120 82 10 Successful Hack 34 | . 7 17 10 . Disable Machine 210 | . 30 90 90 . Destroy Structure 354 | . 3 205 137 9 Lose Combat Pursuer 15 | . 15 . . . Influence Decreases 2297 | 30 389 599 756 523 Entered New Map 602 | . . 40 322 240 Time Decay 1535 | 30 379 559 374 193 Lost Part 160 | . 10 . 60 90 Squads Dispatched 16 | . 4 6 4 2 Investigation 11 | . 1 5 4 1 Extermination . | . . . . . Reinforcement 5 | . 3 1 . 1 Assault . | . . . . . Garrison . | . . . . . Intercept . | . . . . . Searches Triggered . | . . . . . Construction Impeded 2 | . . 1 . 1 Haulers Reinforced . | . . . . . Active Scanning Responses . | . . . . . Cargo Convoy Interrupts . | . . . . . Stealth | -11 -10 -9 -8 -7 --------- Run | Yrd Mat Mat Mat Fac Distress Signals 5 | . 1 3 1 . Communications Jammed . | . . . . . Distress Signals . | . . . . . Times Spotted 81 | . 18 35 21 7 Peak Tracking Total 4 | . 3 4 3 3 Tactical Retreats 1 | . 1 . . . Traps | -11 -10 -9 -8 -7 ------- Run | Yrd Mat Mat Mat Fac Traps Triggered 2 | . 1 1 . . Indirectly . | . . . . . Trap Hack Attempts . | . . . . . Triggered . | . . . . . Disarmed . | . . . . . Reprogrammed . | . . . . . Reused . | . . . . . Traps Extracted . | . . . . . Installed . | . . . . . Triggered . | . . . . . Machines | -11 -10 -9 -8 -7 ---------- Run | Yrd Mat Mat Mat Fac Machines Disabled 14 | . 2 6 6 . Max in Single Turn 1 | . 1 1 1 . Machines Repaired . | . . . . . Machines Dismantled . | . . . . . Machines Sabotaged . | . . . . . Overloaded Fab Kills . | . . . . . Hacking | -11 -10 -9 -8 -7 --------- Run | Yrd Mat Mat Mat Fac Machines Accessed 14 | . 2 7 4 1 Terminals 10 | . 2 4 4 . Fabricators . | . . . . . Repair Stations 1 | . . 1 . . Recycling Units 1 | . . . . 1 Scanalyzers 2 | . . 2 . . Garrison Access . | . . . . . Total Hacks 67 | . 5 45 15 2 Successful 44 | . 4 32 8 . Failed 22 | . 1 12 7 2 Catastrophic 1 | . . 1 . . Database Lockouts 1 | . . 1 . . Manual 1 | . 1 . . . Terminals 33 | . 5 13 15 . Fabricators . | . . . . . Repair Stations 12 | . . 12 . . Recycling Units 2 | . . . . 2 Scanalyzers 20 | . . 20 . . Garrison Access . | . . . . . Terminal Hacks 19 | . 4 7 8 . Record 11 | . 2 3 6 . Robot Analysis 1 | . . 1 . . Prototype ID Bank 4 | . . 2 2 . Alert Level 1 | . 1 . . . Transport Status 1 | . 1 . . . Hauler Manifests 1 | . . 1 . . Fabricator Hacks . | . . . . . Repair Station Hacks 10 | . . 10 . . Scan Component 5 | . . 5 . . Repair 5 | . . 5 . . Recycling Unit Hacks . | . . . . . Scanalyzer 15 | . . 15 . . Insert Component 7 | . . 7 . . Analyze 7 | . . 7 . . Retrieve Study 1 | . . 1 . . Garrison Access Hacks . | . . . . . Unauthorized Hacks . | . . . . . Terminals . | . . . . . Fabricators . | . . . . . Repair Stations . | . . . . . Recycling Units . | . . . . . Scanalyzers . | . . . . . Garrison Access . | . . . . . Data Cores Recovered . | . . . . . Used . | . . . . . Hacking Detections 12 | . 1 6 4 1 Full Trace Events 12 | . 1 6 4 1 Feedback Events . | . . . . . Feedback Blocked . | . . . . . Robot Schematics Acquired . | . . . . . Robots Built . | . . . . . Authchips . | . . . . . Time . | . . . . . Total Robot Build Rating . | . . . . . Part Schematics Acquired 6 | . . 6 . . Parts Built . | . . . . . Authchips . | . . . . . Time . | . . . . . Total Part Build Rating . | . . . . . Part Studies Acquired . | . . . . . Parts Repaired 5 | . . 5 . . Time 244 | . . 244 . . Parts Recycled . | . . . . . Recycled Matter . | . . . . . Retrieved Matter . | . . . . . Retrieved Components . | . . . . . Parts Scanalyzed 6 | . . 6 . . Part Schematics Acquired 6 | . . 6 . . Parts Damaged 1 | . . 1 . . Bothacking | -11 -10 -9 -8 -7 ------------ Run | Yrd Mat Mat Mat Fac Used RIF Installer . | . . . . . Robots Hacked 1 | . . . . 1 Non-combat 1 | . . . . 1 Combat . | . . . . . Robot Hacks Applied 4 | . . . . 4 parse_system 1 | . . . . 1 no_distress 1 | . . . . 1 find_chute 2 | . . . . 2 Relay Couplers Released . | . . . . . Fabnet Peak Effective % . | . . . . . Robots Rewired . | . . . . . Allies Hacked . | . . . . . Hacks Repelled . | . . . . . Allies | -11 -10 -9 -8 -7 -------- Run | Yrd Mat Mat Mat Fac Total Allies . | . . . . . Largest Group . | . . . . . Highest-Rated Group . | . . . . . Highest-Rated Ally . | . . . . . Total Orders . | . . . . . Ally Attacks . | . . . . . Total Damage . | . . . . . Kills . | . . . . . Allies Corrupted . | . . . . . Allies Melted . | . . . . . Intel | -11 -10 -9 -8 -7 ------- Run | Yrd Mat Mat Mat Fac Active Infowar (turns) 2321 | 12 655 1557 97 . Sensors 2147 | . 493 1557 97 . Terrain 174 | 12 162 . . . Robot Analysis Total 1 | . . 1 . . Derelict Logs Recovered . | . . . . . Drone Launches . | . . . . . Drone Recoveries . | . . . . . Exploration | -11 -10 -9 -8 -7 ------------- Run | Yrd Mat Mat Mat Fac Turns Passed 4532 | 201 1008 1851 869 603 Spaces Moved 1884 | 115 610 719 314 126 Core 79 | 11 . 19 . 49 Treads 1065 | . . 674 314 77 Legs 161 | 28 133 . . . Wheels 579 | 76 477 26 . . Hover . | . . . . . Flight . | . . . . . Fastest Speed 50 | 50 80 80 166 240 Average Speed 176 | 100 111 193 189 429 Slowest Speed 950 | 120 330 950 250 850 Overloaded Moves . | . . . . . Propulsion Burnouts . | . . . . . Robots Hopped . | . . . . . Potential Cave-ins . | . . . . . Cave-ins Triggered . | . . . . . Exploration Rate (%) 29 | 7 67 50 22 2 Regions Visited 4 Branch Regions . Pre-discovered Areas . | . . . . . Known Exits Taken 3 | . 1 1 1 . Unknown Exits Taken 1 | 1 . . . . Scrap Searched . | . . . . . Spaces Dug 27 | . . 27 . . Terrain Destroyed 458 | . 1 278 172 7 Melee . | . . . . . Projectile 1 | . . . 1 . AOE 456 | . . 278 171 7 Terrain Rammed 1 | . 1 . . . Walls Destroyed 1 | . 1 . . . Machines Disabled . | . . . . . Actions | -11 -10 -9 -8 -7 --------- Run | Yrd Mat Mat Mat Fac Total 2670 | 162 851 1016 486 155 Wait 396 | 1 139 154 96 6 Move 1880 | 114 609 718 313 126 Hop . | . . . . . Pick Up 53 | 10 17 23 3 . Fast Attach 16 | 8 2 4 1 1 Attach 11 | . 1 1 4 5 Detach 3 | 1 1 . . 1 Swap 76 | 3 18 35 17 3 Drop 27 | 5 16 4 2 . Fire 170 | 20 47 77 21 5 Melee 34 | . . . 29 5 Ram 4 | . 1 . . 3 Kick . | . . . . . Crush . | . . . . . Escape Stasis . | . . . . . Rewire . | . . . . . Trap . | . . . . . Miscellaneous . | . . . . . Route ------- -11/Scrapyard -10/Materials (discovered 4 exits: *Mat x2 / *Min x2) -9/Materials (discovered 2 exits: *Mat / *Min) -8/Materials -7/Factory History --------- Turn | Location | Event 3 | -11/Scrapyard | Discovered new exit (range 15) 202 | -11/Scrapyard | Entered Materials 302 | -10/Materials | Build established: Mutant 398 | -10/Materials | Core integrity fell below 50% 525 | -10/Materials | Discovered new exit (range 8) 778 | -10/Materials | Discovered new exit (range 16) 957 | -10/Materials | Identified exit to Mines 969 | -10/Materials | Discovered exit to Mines (range 15) 1047 | -10/Materials | Discovered new exit (range 13) 1209 | -10/Materials | Identified exit to Materials 1210 | -10/Materials | Entered another Materials area 1210 | -9/Materials | Evolved 2 slots: Propulsion x1, Utility x1 1604 | -9/Materials | Central database locked down 1612 | -9/Materials | Discovered new exit (range 15) 2025 | -9/Materials | Repaired Broken Arm. Treads 2063 | -9/Materials | Repaired Particle Cannon 2203 | -9/Materials | Repaired Broken Arm. Treads 2256 | -9/Materials | Repaired Broken Arm. Treads 2338 | -9/Materials | Repaired Broken Arm. Treads 2507 | -9/Materials | Identified exit to Mines 2894 | -9/Materials | Discovered new exit (range 11) 2986 | -9/Materials | Identified exit to Materials 3061 | -9/Materials | Entered another Materials area 3061 | -8/Materials | Evolved 2 slots: Propulsion x1, Weapon x1 3648 | -8/Materials | Lost 3 parts (1p2n) 3778 | -8/Materials | Discovered new exit (range 6) 3927 | -8/Materials | Identified exit to Factory 3930 | -8/Materials | Entered Factory 3930 | -7/Factory | Evolved 2 slots: Propulsion x1, Utility x1 4138 | -7/Factory | Lost 5 parts (1p1n3w) 4175 | -7/Factory | Core integrity fell below 50% 4205 | -7/Factory | Lost 4 parts (1n3w) 4531 | -7/Factory | Core integrity fell below 20% 4533 | -7/Factory | Self-destructed Last Messages --------------- [Achievement: Junior Dev] Sneak attack on K-01 Serf. Jacked K-01 Serf... >>find_chute Pinpointed chute assignment: (66,127). R-06 Scavenger collects Aluminum Leg. Sneak attack on K-01 Serf. Jacked K-01 Serf... >>no_distress Distress signal routine blocked. R-06 Scavenger collects Imp. Heat Sink. Sneak attack on K-01 Serf. Jacked K-01 Serf... >>parse_system Reading system data... Sneak attack on K-01 Serf. Jacked K-01 Serf... Command string: help No effect. Datajack destroyed. Map ----- +----------------------------------------------------+ | ?????????????????????????????????????????????????? | | ?????????????????????????????????????????????????? | | ?????????????????????????????????????????????????? | | ?????????????????????????????????????????????????? | | ?????????????????????????????????????????????????? | | ?????????????????????????????????????????????????? | | ?????????????????????????????????????????????????? | | ?????????????????????????????????????????????????? | | ?????????????????????????????????????????????????? | | ?????????????????????????????????????????????????? | | ??????????????????????? ??????????????????????? | | ?????????????????????# ??????????????????????? | | ?????????????????????# ??????????????????????? | | ?????????????????????# #? ??????????????????? | | ?????????????????????# # ????????????????? | | ?????????????????????# # ????????????????? | | ?????????????????????# # ?????????????????? | | ?????????????????????# # ????????????????? | | ?????????????????????# ###+####??????????????? | | ????????############## ??????????????? | | ????????# # % ??????????????? | | ????????# # ?????????????? | | ????????# # g% ??????????????? | | ????????# """ # g ???????????????? | | ????????# """ # g### ##????????????????? | | ????????# """ # @ # ??????????????? | | ????????# # #?????????????????????? | | ????????# # #?????????????????????? | | ????????# # #?????????????????????? | | ????????# + #?????????????????????? | | ????????# # #?????????????????????? | | ????????# # #?????????????????????? | | ????????############## #?????????????????????? | | ?????????# # # # #?????????????????????? | | ?????????##### ##### #?????????????????????? | | ?????????????##????# #?????????????????????? | | ???????????????????# k #?????????????????????? | | ???????????????????# #?????????????????????? | | ?????????????????######+#######??????????????????? | | ?????????????????# """ #??????????????????? | | ?????????????????# ! "Y" #??????????????????? | | ?????????????????# " " #??????????????????? | | ?????????????????# #??????????????????? | | ?????????????????# #??????????????????? | | ?????????????????# """ """ #??????????????????? | | ?????????????????# """ """ #??????????????????? | | ?????????????????# """ """ #??????????????????? | | ?????????????????# "" "" #??????????????????? | | ?????????????????# "" "" #??????????????????? | | ?????????????????# #??????????????????? | +----------------------------------------------------+ Best States ------------- Heat Dissipation 35 Energy Generation 14 Energy Capacity 280 Matter Stores 300 Matter Capacity 300 Sight Range 16 Robot Scan Range 14 Terrain Scan Range 16 Terrain Scan Density 210 Armor Coverage 150 Resistance: KI 20 Evasion (%) 55 Recoil Reduction 4 Item Schematics ----------------- Arm. Treads | -9/Materials | Scanalyzed Mni. Grenade Launcher | -9/Materials | Scanalyzed Lgt. Armor Plating | -9/Materials | Scanalyzed Hvy. Particle Gun | -9/Materials | Scanalyzed Ion Engine | -9/Materials | Scanalyzed Imp. Treads | -9/Materials | Scanalyzed Robot Schematics ------------------ None Fabricated ------------ Nothing Repaired ---------- Arm. Treads | 70% | -9/Materials | Broken Particle Cannon | 1% | -9/Materials Arm. Treads | 93% | -9/Materials | Broken Arm. Treads | 42% | -9/Materials | Broken Studied --------- None Alien Tech Used ----------------- None Achievements -------------- Junior Dev Librarian Not Today, Chutes Remodeling Resistances Are Futile Challenges ------------ None Game ------ Seed MetafieldHardcellScrap Manual? 0 Play Time 01:17:23 Cumulative 5.6 hours Start 2025.11.03 @ 20:34:32 End 2026.01.26 @ 22:24:17 Sessions 5 Manual Loads 0 Difficulty Rogue Special Mode None Game No. 6 Rogue 6 Adventurer 0 Explorer 0 Win Type - Total 0 Types 0/0/0/0/0/0/0/0/0/0 Lore% 3 Gallery% 7 Achievement% 10 Wizard Run 0 Options --------- Layout 2 ASCII 0 Keyboard 0 Movement Numpad Keybinds 0 Fullscreen 1 Font 16/SmallcapsGlow Map View 50x49 Zoom Use 79% Tactical HUD 0 Map Filters NONE Filters NONE Steam SD RUN: 869554bb-1c78-4e3f-8a7a-0e25ad1d4f8d